Cogmind - Beta 17 @@@ ROGUE MODE // 2026.07.04 @ 13:17:04 Player: Bikerider58 Result: Destroyed by G-34 Mercenary with Small Laser Performance ------------- Evolutions (0) 0 Regions Visited (1) 200 Robots Destroyed (25) 125 Value Destroyed (705) 705 Prototype IDs (2) 40 Alien Tech Used (0) 0 Bonus (0) 0 TOTAL SCORE: 1070 Bonus ------- None Cogmind --------- Core Integrity 0/250 Matter 300/300 Energy 56/100 System Corruption 0% Temperature Cool (6) Movement Walking (260) Ox2 Location -10/Materials Parts ------- > --- POWER (1) -------- (None) > --- PROPULSION (2) --- Aluminum Leg > --- UTILITY (2) ------ Large Storage Unit > --- WEAPON (2) ------- EM Pulse Gun > --- INVENTORY (15) --- High-capacity Storage Unit Huge Storage Unit High-capacity Matter Pod (200) Structural Scanner EM Pulse Gun Small Laser Small Laser Small Laser Small Laser Light Assault Rifle Peak State ------------ > --- POWER ------------ Ion Engine > --- PROPULSION ------- Aluminum Leg Aluminum Leg > --- UTILITY ---------- Large Storage Unit Seismic Detector > --- WEAPON ----------- EM Pulse Gun EM Pulse Gun > --- INVENTORY -------- High-capacity Storage Unit Huge Storage Unit High-capacity Matter Pod Structural Scanner EM Pulse Gun Small Laser Small Laser Small Laser Small Laser Light Assault Rifle [Rating: 8] Favorites ----------- Power Ion Engine Engine Ion Engine Propulsion Aluminum Leg Treads Light Treads Leg Aluminum Leg Hover Unit Hover Unit Utility Seismic Detector Device Seismic Detector Storage Small Storage Unit Weapon Small Laser Energy Gun Small Laser Ballistic Gun Light Assault Rifle Build | -11 -10 ------- Run | Yrd Mat Slots Evolved . | . . Power . | . . Propulsion . | . . Utility . | . . Weapon . | . . Parts Attached 18 | 7 11 Power 2 | 1 1 Engine 2 | 1 1 Core . | . . Reactor . | . . Propulsion 6 | 2 4 Treads 2 | 2 . Leg 2 | . 2 Wheel . | . . Hover 2 | . 2 Flight . | . . Utility 4 | 2 2 Device 1 | 1 . Storage 3 | 1 2 Processor . | . . Hackware . | . . Protection . | . . Artifact . | . . Weapon 6 | 2 4 Energy Gun 4 | 1 3 Energy Cannon . | . . Ballistic Gun 2 | 1 1 Ballistic Cannon . | . . Launcher . | . . Special Weapon . | . . Impact Weapon . | . . Slashing Weapon . | . . Piercing Weapon . | . . Special Melee Weapon . | . . Unidentified Prototypes . | . . Parts Lost 9 | . 9 Power 2 | . 2 Propulsion 3 | . 3 Utility 1 | . 1 Weapon 3 | . 3 Highest Loss Streak 4 | . 4 To Critical Strikes . | . . Average Backups 4 | . 4 Power . | . . Propulsion . | . . Utility 2 | . 2 Weapon 2 | . 2 Tool/Special . | . . Unused Backups 9 | . 9 Power . | . . Propulsion . | . . Utility 4 | . 4 Weapon 5 | . 5 Tool/Special . | . . Average Slot Usage (%) 94 | . 94 Engine 12 | . 12 Treads 9 | . 9 Leg 13 | . 13 Hover 1 | . 1 Device 13 | . 13 Storage 14 | . 14 Energy Gun 14 | . 14 Ballistic Gun 12 | . 12 Peak Build Rating 8 | 7 8 Average Rating 6 | 4 6 On Entrance 3 | . 7 Avg Prop Armor Cover (%) . | . . Naked Turns . | . . Heaviest Build 30 | 15 30 Greatest Support 40 | 40 40 Greatest Overweight (x) 4 | . 4 Average Overweight (x) . | . . Largest Inventory Capacity 15 | 8 15 Average Capacity 10 | 7 10 Most Carried 10 | . 10 Average Carried 4 | . 4 Final Capacity 15 | 8 15 Final Carried 10 | . 10 Class Distribution -------------------- 53% | Mutant 46% | Scavenger-Mutant Dominant Class ---------------- Mutant | -10/Materials Resources | -11 -10 ----------- Run | Yrd Mat Matter Collected 698 | 249 449 Remotely . | . . Salvage Created 1022 | 104 918 Parts 43 | 3 40 Haulers Intercepted 1 | . 1 Recyclers Shooed 1 | . 1 Parts Field Recycled . | . . Retrieved Matter . | . . Parts Self-Destructed . | . . Prevented . | . . Parts Restored . | . . Kills | -11 -10 ------- Run | Yrd Mat Combat Hostiles Destroyed 20 | . 20 Guns 19 | . 19 Classes Destroyed 6 | 2 4 Tunneler 1 | 1 . Hauler 1 | . 1 Recycler 2 | 1 1 Operator 1 | . 1 Swarmer 2 | . 2 Grunt 18 | . 18 Best Kill Streak 3 | 1 3 Combat Bots Only 3 | . 3 Max Kills in Single Turn 1 | 1 1 Gunslinging . | . . Exploded . | . . Melee . | . . Uniques/NPCs Destroyed . | . . Combat | -11 -10 -------- Run | Yrd Mat Hostile Shots Fired 136 | . 136 Missed 36 | . 36 Hits 100 | . 100 Projectile 100 | . 100 Damage Taken 1135 | . 1135 Core 255 | . 255 Absorbed by Shields . | . . Core Remaining (%) 100 | 100 . Volleys Fired 86 | 2 84 Largest 2 | 2 2 Hottest 80 | 60 80 Shots Fired 148 | 4 144 Gun 148 | 4 144 Cannon . | . . Launcher . | . . Special . | . . Kinetic 58 | 2 56 Thermal 41 | . 41 Explosive . | . . Electromagnetic 49 | 2 47 Robot Hit Streak 16 | 2 16 Robot Miss Streak 2 | 1 2 Penetration Max . | . . Secondary Targets 1 | . 1 Max Gunslinging Chain 1 | . 1 Shots Hit Robots 111 | 2 109 Core Hits 45 | 2 43 Critical Kills 2 | . 2 Critical Parts Destroyed . | . . Critical Strikes 3 | . 3 Destroy 2 | . 2 Corrupt 1 | . 1 Melee Attacks . | . . Impact . | . . Slashing . | . . Piercing . | . . Sneak Attacks . | . . Combat Hostiles . | . . Follow-up Attacks . | . . Damage Inflicted 1342 | 64 1278 Guns 1300 | 29 1271 Cannons . | . . Explosions 35 | 35 . Melee . | . . Ramming 7 | . 7 Kinetic 480 | 14 466 Thermal 457 | 35 422 Explosive . | . . Electromagnetic 398 | 15 383 Impact . | . . Slashing . | . . Piercing . | . . Highest Corruption . | . . Average Corruption . | . . Corruption Purged . | . . Corruption Blocked . | . . Overload Shots . | . . Overflow Damage . | . . Projectiles . | . . Explosions . | . . Melee . | . . Knockbacks . | . . Impact . | . . Kinetic . | . . Secondary . | . . Self-Inflicted Damage . | . . Shots . | . . Rammed . | . . Targets Rammed 7 | . 7 Kicked 7 | . 7 Crushed . | . . Highest Temperature 236 | . 236 Average Temperature 49 | . 49 Received Heat Transfer 597 | . 597 Siege Activations . | . . Martial Activations . | . . Shielding Activations . | . . Robots Disrupted . | . . Combat Hostiles . | . . Robots Corrupted 1 | . 1 Combat Hostiles 1 | . 1 Parts Fried 2 | . 2 Impact Corruptions . | . . Robots Melted . | . . Combat Hostiles . | . . Parts Melted 2 | . 2 Heat Transferred 950 | . 950 Parts Sabotaged . | . . Parts Stolen . | . . Parts Stripped . | . . Power Chain Reactions 1 | 1 . Alert | -11 -10 ------- Run | Yrd Mat Maximum Alert Level . | . . Low Security (%) 100 | 100 100 Level 1 . | . . Level 2 . | . . Level 3 . | . . Level 4 . | . . Level 5 . | . . High Security . | . . Max Security . | . . Peak Influence 161 | 5 161 Initial . | . . Average 68 | 1 73 Influence Increases 594 | 10 584 Destroy 0b10 Robot/C 400 | . 400 Destroy 0b10 Robot/NC 25 | 10 15 Destroy Leader 82 | . 82 Successful Hack 12 | . 12 Select Force Hacks 30 | . 30 Disable Machine 15 | . 15 Lose Combat Pursuer 30 | . 30 Influence Decreases 494 | 10 484 Time Decay 404 | 10 394 Lost Part 90 | . 90 Squads Dispatched 6 | . 6 Investigation 4 | . 4 Extermination . | . . Reinforcement 2 | . 2 Assault . | . . Garrison . | . . Intercept . | . . Searches Triggered . | . . Construction Impeded . | . . Haulers Reinforced . | . . Active Scanning Responses . | . . Cargo Convoy Interrupts . | . . Stealth | -11 -10 --------- Run | Yrd Mat Distress Signals 1 | . 1 Communications Jammed . | . . Distress Signals . | . . Times Spotted 30 | . 30 Peak Tracking Total 6 | . 6 Tactical Retreats 2 | . 2 Traps | -11 -10 ------- Run | Yrd Mat Traps Triggered 5 | . 5 Indirectly . | . . Trap Hack Attempts . | . . Triggered . | . . Disarmed . | . . Reprogrammed . | . . Reused . | . . Traps Extracted . | . . Installed . | . . Triggered . | . . Machines | -11 -10 ---------- Run | Yrd Mat Machines Disabled 1 | . 1 Max in Single Turn 1 | . 1 Machines Repaired . | . . Machines Dismantled . | . . Machines Sabotaged . | . . Overloaded Fab Kills . | . . Hacking | -11 -10 --------- Run | Yrd Mat Machines Accessed 3 | . 3 Terminals 2 | . 2 Fabricators . | . . Repair Stations . | . . Recycling Units 1 | . 1 Scanalyzers . | . . Garrison Access . | . . Total Hacks 7 | . 7 Successful 4 | . 4 Failed 3 | . 3 Catastrophic . | . . Database Lockouts . | . . Manual 4 | . 4 Terminals 6 | . 6 Fabricators . | . . Repair Stations . | . . Recycling Units 1 | . 1 Scanalyzers . | . . Garrison Access . | . . Terminal Hacks 3 | . 3 Robot Schematic 1 | . 1 Prototype ID Bank 1 | . 1 Hauler Manifests 1 | . 1 Fabricator Hacks . | . . Repair Station Hacks . | . . Recycling Unit Hacks . | . . Scanalyzer . | . . Garrison Access Hacks . | . . Unauthorized Hacks 1 | . 1 Terminals . | . . Fabricators . | . . Repair Stations . | . . Recycling Units 1 | . 1 Tunnel 1 | . 1 Scanalyzers . | . . Garrison Access . | . . Data Cores Recovered . | . . Used . | . . Hacking Detections 1 | . 1 Full Trace Events . | . . Feedback Events . | . . Feedback Blocked . | . . Robot Schematics Acquired 1 | . 1 Robots Built . | . . Authchips . | . . Time . | . . Total Robot Build Rating . | . . Part Schematics Acquired . | . . Parts Built . | . . Authchips . | . . Time . | . . Total Part Build Rating . | . . Part Studies Acquired . | . . Parts Repaired . | . . Time . | . . Parts Recycled . | . . Recycled Matter . | . . Retrieved Matter . | . . Retrieved Components . | . . Parts Scanalyzed . | . . Part Schematics Acquired . | . . Parts Damaged . | . . Bothacking | -11 -10 ------------ Run | Yrd Mat Used RIF Installer . | . . Robots Hacked . | . . Non-combat . | . . Combat . | . . Robot Hacks Applied . | . . Relay Couplers Released . | . . Fabnet Peak Effective % . | . . Robots Rewired . | . . Allies Hacked . | . . Hacks Repelled . | . . Allies | -11 -10 -------- Run | Yrd Mat Total Allies . | . . Largest Group . | . . Highest-Rated Group . | . . Highest-Rated Ally . | . . Total Orders . | . . Ally Attacks . | . . Total Damage . | . . Kills . | . . Allies Corrupted . | . . Allies Melted . | . . Intel | -11 -10 ------- Run | Yrd Mat Active Infowar (turns) 1257 | 16 1241 Seismic 1257 | 16 1241 Robot Analysis Total . | . . Derelict Logs Recovered . | . . Drone Launches . | . . Drone Recoveries . | . . Exploration | -11 -10 ------------- Run | Yrd Mat Turns Passed 1341 | 88 1253 Spaces Moved 523 | 47 476 Core 52 | 5 47 Treads 208 | 42 166 Legs 206 | . 206 Wheels . | . . Hover 57 | . 57 Flight . | . . Fastest Speed 50 | 50 116 Average Speed 160 | 148 161 Slowest Speed 250 | 160 250 Overloaded Moves . | . . Propulsion Burnouts . | . . Robots Hopped . | . . Potential Cave-ins . | . . Cave-ins Triggered . | . . Exploration Rate (%) 32 | 4 60 Regions Visited 1 Branch Regions . Pre-discovered Areas 1 | . 1 Known Exits Taken . | . . Unknown Exits Taken 1 | 1 . Scrap Searched . | . . Spaces Dug . | . . Terrain Destroyed 2 | 2 . Melee . | . . Projectile . | . . AOE 2 | 2 . Terrain Rammed . | . . Walls Destroyed . | . . Machines Disabled . | . . Actions | -11 -10 --------- Run | Yrd Mat Total 867 | 58 809 Wait 216 | 3 213 Move 522 | 46 476 Hop . | . . Pick Up 9 | . 9 Fast Attach 19 | 7 12 Attach . | . . Detach 1 | . 1 Swap 2 | . 2 Drop 5 | . 5 Fire 86 | 2 84 Melee . | . . Ram . | . . Kick 7 | . 7 Crush . | . . Escape Stasis . | . . Rewire . | . . Trap . | . . Miscellaneous . | . . Route ------- -11/Scrapyard -10/Materials (discovered 3 exits: [*Mat x3]) History --------- Turn | Location | Event 32 | -11/Scrapyard | Discovered new exit (range 16) 89 | -11/Scrapyard | Entered Materials 201 | -10/Materials | Discovered new exit (range 8) 315 | -10/Materials | Build established: Mutant 505 | -10/Materials | Core integrity fell below 50% 507 | -10/Materials | Lost 3 parts (1p1n1w) 773 | -10/Materials | Discovered new exit (range 9) 1001 | -10/Materials | Build established: Scavenger-Mutant 1224 | -10/Materials | Core integrity fell below 20% 1228 | -10/Materials | Discovered new exit (range 13) 1342 | -10/Materials | Destroyed by G-34 Mercenary with Small Laser Last Messages --------------- 01240_ R-06 Scavenger collects Ion Engine. 01246_ Dropped Sml. Laser. 01247_ Acquired EM Pulse Gun. 01254_ Acquired Structural Scanner. 01301_ S-10 Pest destroyed. 01301_ Door malfunctions. 01304_ S-10 Pest destroyed. 01305_ Acquired 14 matter. 01314_ Ion Engine destroyed. 01318_ G-47 Trooper IFF system glitched. 01328_ G-47 Trooper misfires. 01329_ Kicked G-47 Trooper. 01330_ Seismic Detector destroyed. 01332_ G-47 Trooper system terminally corrupted. 01332_ Aluminum Leg fried. 01334_ Aluminum Leg destroyed. 01334_ Kicked G-34 Mercenary. 01337_ Kicked G-34 Mercenary out of the way. 01339_ Kicked G-34 Mercenary. 01340_ EM Pulse Gun destroyed. Map ----- +----------------------------------------------------+ | ????????????????# #?????????????????####+###### | | ????????????????# #??????????????????#* #?? | | ???????????????## ##?????????????????# = #?? | | ????????######## ###+####??????????# = #?? | | ????????# #??????????# #?? | | ????????# < " / ""???????# #?? | | ????????# # ??????# #?? | | ????????#### ### ########??????????########?? | | ???????????# #?#######??????????????????????????? | | ???????????# #??????????????????????????????????? | | ???????????# #??????????????????????????????????? | | ???????????# #??????????????????????????????????? | | ???????????# #??????????????????????????????????? | | ??########## #??????????????????????????????????? | | ??# # ## #########??????????????????????????? | | ??# # + #??????????????????????????? | | ??# # # """ #??????????????????????????? | | ??# # # """ #########??????????????????? | | ??# + # """ # "T" #?????????????????? | | ??# # # # ! #?????????????????? | | ??# # + # #?????????????????? | | ??# # ######## """"" #?????????????????? | | ??# # ### # """"" #?????????????????? | | ??########## # """"" #?????????????????? | | ???????????# # %%%% #????#????????????? | | ??????######+#### ![=###@####### / ???????? | | ??????# ##!%###g[! #????????????? | | ??????# T ## % < ?????? | | ??????# ## ####### ?????? | | ??????# ## #????????########??????? | | ????########+##### #??????????????????????? | | ????# #??????????????????????? | | ????# #??????????????????????? | | ????# #+#########+##########???????????????? | | ????# # """ # #???????????????? | | ????#! ! !#=""" # ![ ! """ #???????????????? | | ????##!!! ##%""" # """ #???????????????? | | ?????####### ! # [ """ #???????????????? | | ???????????#%= # #???????????????? | | ???????????######################???????????????? | | | | | | | | | | | | | | | | | | | | | +----------------------------------------------------+ Best States ------------- Heat Dissipation 25 Energy Generation 10 Energy Capacity 250 Matter Stores 300 Matter Capacity 300 Sight Range 16 Terrain Scan Density 10 Evasion (%) 55 Recoil Reduction 2 Item Schematics ----------------- None Robot Schematics ------------------ M-13 Machinist | -10/Materials | Hacked Fabricated ------------ Nothing Repaired ---------- Nothing Studied --------- None Alien Tech Used ----------------- None Achievements -------------- None Challenges ------------ None Game ------ Seed NodeArcMembrane Manual? 0 Play Time 00:07:37 Cumulative 304.0 hours Start 2026.07.04 @ 13:09:49 End 2026.07.04 @ 13:17:04 Sessions 1 Manual Loads 0 Difficulty Rogue Special Mode None Game No. 121 Rogue 116 Adventurer 5 Explorer 0 Win Type - Total 8 Types 4/0/2/1/0/0/0/0/0/1 Lore% 74 Gallery% 71 Achievement% 65 Wizard Run 0 Options --------- Layout 1 ASCII 0 Keyboard 0 Movement Numpad Keybinds 0 Fullscreen 1 Font 24/Smallcaps Map View 50x35 Zoom Use 0% Tactical HUD 1 Map Filters NONE Filters NONE Steam 1 RUN: fd186e80-dd0e-486f-9870-158a84ae5a60